Workbook

Sheet KAB
C2: JUMLAH PENDUDUK KABUPATEN BENGKULU TENGAH
C3: SEMESTER II TAHUN 2024
C6: KABUPATEN | E6: : BENGKULU TENGAH | F6: 17.09
C7: NO | D7: KODE WILAYAH | E7: KECAMATAN | F7: JUMLAH PENDUDUK
F8: LAKI-LAKI | G8: PEREMPUAN | H8: JUMLAH
C9: 1 | D9: 17.09.01 | E9: KARANG TINGGI | F9: 6,804 | G9: 6,632 | H9: =F9+G9 -> 13,436
C10: 2 | D10: 17.09.02 | E10: TALANG EMPAT | F10: 6,752 | G10: 6,436 | H10: =F10+G10 -> 13,188
C11: 3 | D11: 17.09.03 | E11: PONDOK KELAPA | F11: 16,688 | G11: 16,086 | H11: 32,774
C12: 4 | D12: 17.09.04 | E12: PEMATANG TIGA | F12: 4,194 | G12: 3,956 | H12: 8,150
C13: 5 | D13: 17.09.05 | E13: PAGAR JATI | F13: 3,774 | G13: 3,667 | H13: 7,441
C14: 6 | D14: 17.09.06 | E14: TABA PENANJUNG | F14: 6,451 | G14: 6,023 | H14: 12,474
C15: 7 | D15: 17.09.07 | E15: MERIGI KELINDANG | F15: 3,972 | G15: 3,749 | H15: 7,721
C16: 8 | D16: 17.09.08 | E16: MERIGI SAKTI | F16: 3,479 | G16: 3,387 | H16: 6,866
C17: 9 | D17: 17.09.09 | E17: PONDOK KUBANG | F17: 5,679 | G17: 5,388 | H17: 11,067
C18: 10 | D18: 17.09.10 | E18: BANG HAJI | F18: 3,749 | G18: 3,462 | H18: 7,211
C19: 11 | D19: 17.09.11 | E19: SEMIDANG LAGAN | F19: 3,114 | G19: 2,897 | H19: 6,011
C20: TOTAL | F20: =SUM(F9:F19) -> 64,656 | G20: =SUM(G9:G19) -> 61,683 | H20: =SUM(H9:H19) -> 126,339
G25: KEPALA DINAS KEPENDUDUKAN
G26: DAN PENCATATAN SIPIL
K29: .
G30: AYATUL MUKHTADIN, S.H.
G31: NIP. 19680818 198812 1 002

Sheet DIAGRAM

Sheet KECAMATAN.
C2: REKAPITULASI JUMLAH PENDUDUK
C3: KABUPATEN BENGKULU TENGAH PERKECAMATAN
C4: SEMESTER II TAHUN 2024
C6: KECAMATAN | E6: : KARANG TINGGI | F6: 17.09.01
C7: NO | D7: KODE WILAYAH | E7: DESA/KELURAHAN | F7: JUMLAH PENDUDUK
F8: LAKI-LAKI | G8: PEREMPUAN | H8: JUMLAH
C9: 1 | D9: 17.09.01.2001 | E9: TABA TERUNJAM | F9: 527 | G9: 540 | H9: =F9+G9 -> 1,067
C10: 2 | D10: 17.09.01.2002 | E10: TALANG EMPAT | F10: 630 | G10: 560 | H10: =F10+G10 -> 1,190
C11: 3 | D11: 17.09.01.2003 | E11: PADANG TAMBAK | F11: 448 | G11: 447 | H11: 895
C12: 4 | D12: 17.09.01.2004 | E12: DURIAN DEMANG | F12: 851 | G12: 856 | H12: 1,707
C13: 5 | D13: 17.09.01.2005 | E13: PELAJAU | F13: 297 | G13: 303 | H13: 600
C14: 6 | D14: 17.09.01.2007 | E14: DUSUN BARU II | F14: 608 | G14: 592 | H14: 1,200
C15: 7 | D15: 17.09.01.2008 | E15: PENANDING | F15: 594 | G15: 549 | H15: 1,143
C16: 8 | D16: 17.09.01.2009 | E16: KARANG TINGGI | F16: 855 | G16: 881 | H16: 1,736
C17: 9 | D17: 17.09.01.2010 | E17: RENAH LEBAR | F17: 277 | G17: 269 | H17: 546
C18: 10 | D18: 17.09.01.2011 | E18: KANCING | F18: 304 | G18: 291 | H18: 595
C19: 11 | D19: 17.09.01.2012 | E19: UJUNG KARANG | F19: 740 | G19: 704 | H19: 1,444
C20: 12 | D20: 17.09.01.2013 | E20: TABA MUTUNG | F20: 236 | G20: 238 | H20: 474
C21: 13 | D21: 17.09.01.2015 | E21: RENAH SEMANEK | F21: 437 | G21: 402 | H21: 839
C22: TOTAL | F22: =SUM(F9:F21) -> 6,804 | G22: =SUM(G9:G21) -> 6,632 | H22: =SUM(H9:H21) -> 13,436
C24: KECAMATAN | E24: : TALANG EMPAT | F24: 17.09.02
C25: NO | D25: KODE WILAYAH | E25: DESA/KELURAHAN | F25: JUMLAH PENDUDUK
F26: LAKI-LAKI | G26: PEREMPUAN | H26: JUMLAH
C27: 1 | D27: 17.09.02.2001 | E27: AIR SEBAKUL | F27: 882 | G27: 854 | H27: =F27+G27 -> 1,736
C28: 2 | D28: 17.09.02.2004 | E28: TABA PASMAH | F28: 612 | G28: 590 | H28: =F28+G28 -> 1,202
C29: 3 | D29: 17.09.02.2005 | E29: KEMBANG SERI | F29: 1,744 | G29: 1,679 | H29: 3,423
C30: 4 | D30: 17.09.02.2006 | E30: TENGAH PADANG | F30: 761 | G30: 726 | H30: 1,487
C31: 5 | D31: 17.09.02.2007 | E31: JAYAKARTA | F31: 408 | G31: 401 | H31: 809
C32: 6 | D32: 17.09.02.2008 | E32: NAKAU | F32: 575 | G32: 568 | H32: 1,143
C33: 7 | D33: 17.09.02.2009 | E33: PULAU PANGGUNG | F33: 653 | G33: 629 | H33: 1,282
C34: 8 | D34: 17.09.02.2014 | E34: JUM'AT | F34: 260 | G34: 236 | H34: 496
C35: 9 | D35: 17.09.02.2015 | E35: PADANG ULAK TANJUNG | F35: 446 | G35: 383 | H35: 829
C36: 10 | D36: 17.09.02.2017 | E36: AIR PUTIH | F36: 411 | G36: 370 | H36: 781
C37: TOTAL | F37: =SUM(F27:F36) -> 6,752 | G37: =SUM(G27:G36) -> 6,436 | H37: =SUM(H27:H36) -> 13,188
C39: KECAMATAN | E39: : PONDOK KELAPA | F39: 17.09.03
C40: NO | D40: KODE WILAYAH | E40: DESA/KELURAHAN | F40: JUMLAH PENDUDUK
F41: LAKI-LAKI | G41: PEREMPUAN | H41: JUMLAH
C42: 1 | D42: 17.09.03.2009 | E42: TALANG PAUH | F42: 1,083 | G42: 1,104 | H42: =F42+G42 -> 2,187
C43: 2 | D43: 17.09.03.2010 | E43: SRIKATON | F43: 585 | G43: 562 | H43: =F43+G43 -> 1,147
C44: 3 | D44: 17.09.03.2011 | E44: PEKIK NYARING | F44: 2,269 | G44: 2,171 | H44: 4,440
C45: 4 | D45: 17.09.03.2012 | E45: PASAR PEDATI | F45: 2,874 | G45: 2,743 | H45: 5,617
C46: 5 | D46: 17.09.03.2013 | E46: SUNDA KELAPA | F46: 764 | G46: 730 | H46: 1,494
C47: 6 | D47: 17.09.03.2014 | E47: PONDOK KELAPA | F47: 1,898 | G47: 1,862 | H47: 3,760
C48: 7 | D48: 17.09.03.2015 | E48: PADANG BETUAH | F48: 771 | G48: 807 | H48: 1,578
C49: 8 | D49: 17.09.03.2016 | E49: SIDOREJO | F49: 907 | G49: 849 | H49: 1,756
C50: 9 | D50: 17.09.03.2017 | E50: SIDODADI | F50: 1,158 | G50: 1,115 | H50: 2,273
C51: 10 | D51: 17.09.03.2018 | E51: TALANG BOSENG | F51: 385 | G51: 370 | H51: 755
C52: 11 | D52: 17.09.03.2019 | E52: PAGAR DEWA | F52: 240 | G52: 226 | H52: 466
C53: 12 | D53: 17.09.03.2020 | E53: KEMBANG AYUN | F53: 394 | G53: 357 | H53: 751
C54: 13 | D54: 17.09.03.2021 | E54: PANCA MUKTI | F54: 738 | G54: 710 | H54: 1,448
C55: 14 | D55: 17.09.03.2022 | E55: SRI KUNCORO | F55: 995 | G55: 932 | H55: 1,927
C56: 15 | D56: 17.09.03.2023 | E56: BINTANG SELATAN | F56: 275 | G56: 272 | H56: 547
C57: 16 | D57: 17.09.03.2024 | E57: ABU SAKIM | F57: 534 | G57: 480 | H57: 1,014
C58: 17 | D58: 17.09.03.2025 | E58: HARAPAN | F58: 818 | G58: 796 | H58: 1,614
C59: TOTAL | F59: =SUM(F42:F58) -> 16,688 | G59: =SUM(G42:G58) -> 16,086 | H59: =SUM(H42:H58) -> 32,774
C61: KECAMATAN | E61: : PEMATANG TIGA | F61: 17.09.04
C62: NO | D62: KODE WILAYAH | E62: DESA/KELURAHAN | F62: JUMLAH PENDUDUK
F63: LAKI-LAKI | G63: PEREMPUAN | H63: JUMLAH
C64: 1 | D64: 17.09.04.2002 | E64: ATURAN MUMPO | F64: 344 | G64: 348 | H64: =F64+G64 -> 692
C65: 2 | D65: 17.09.04.2003 | E65: TALANG TENGAH II | F65: 337 | G65: 301 | H65: =F65+G65 -> 638
C66: 3 | D66: 17.09.04.2004 | E66: KOTA TITIK | F66: 205 | G66: 199 | H66: 404
C67: 4 | D67: 17.09.04.2007 | E67: SENABAH | F67: 231 | G67: 241 | H67: 472
C68: 5 | D68: 17.09.04.2015 | E68: AIR KOTOK | F68: 316 | G68: 265 | H68: 581
C69: 6 | D69: 17.09.04.2016 | E69: BATU BERIANG | F69: 400 | G69: 361 | H69: 761
C70: 7 | D70: 17.09.04.2017 | E70: PEMATANG TIGA | F70: 427 | G70: 387 | H70: 814
C71: 8 | D71: 17.09.04.2018 | E71: TIAMBANG | F71: 259 | G71: 269 | H71: 528
C72: 9 | D72: 17.09.04.2019 | E72: KEBUN LEBAR | F72: 335 | G72: 322 | H72: 657
C73: 10 | D73: 17.09.04.2020 | E73: TANJUNG KEPAHYANG | F73: 301 | G73: 281 | H73: 582
C74: 11 | D74: 17.09.04.2021 | E74: PEMATANG TIGA LAMA | F74: 311 | G74: 298 | H74: 609
C75: 12 | D75: 17.09.04.2022 | E75: ATURAN MUMPO II | F75: 420 | G75: 406 | H75: 826
C76: 13 | D76: 17.09.04.2023 | E76: GENTING DABUK | F76: 308 | G76: 278 | H76: 586
C77: TOTAL | F77: =SUM(F64:F76) -> 4,194 | G77: =SUM(G64:G76) -> 3,956 | H77: 8,150
C79: KECAMATAN | E79: : PAGAR JATI | F79: 17.09.05
C80: NO | D80: KODE WILAYAH | E80: DESA/KELURAHAN | F80: JUMLAH PENDUDUK
F81: LAKI-LAKI | G81: PEREMPUAN | H81: JUMLAH
C82: 1 | D82: 17.09.05.2006 | E82: TEMIANG | F82: 327 | G82: 321 | H82: =F82+G82 -> 648
C83: 2 | D83: 17.09.05.2008 | E83: TABA RENAH | F83: 205 | G83: 206 | H83: =F83+G83 -> 411
C84: 3 | D84: 17.09.05.2009 | E84: KERTA PATI | F84: 423 | G84: 431 | H84: 854
C85: 4 | D85: 17.09.05.2010 | E85: PAGAR JATI | F85: 265 | G85: 307 | H85: 572
C86: 5 | D86: 17.09.05.2012 | E86: KARANG ARE | F86: 193 | G86: 186 | H86: 379
C87: 6 | D87: 17.09.05.2013 | E87: DATAR PENOKAT | F87: 189 | G87: 186 | H87: 375
C88: 7 | D88: 17.09.05.2014 | E88: LAYANG LEKAT | F88: 209 | G88: 211 | H88: 420
C89: 8 | D89: 17.09.05.2015 | E89: TUMBUK | F89: 235 | G89: 211 | H89: 446
C90: 9 | D90: 17.09.05.2016 | E90: TALANG CURUP | F90: 136 | G90: 135 | H90: 271
C91: 10 | D91: 17.09.05.2017 | E91: RENA KANDIS | F91: 247 | G91: 221 | H91: 468
C92: 11 | D92: 17.09.05.2018 | E92: ARGA INDAH I | F92: 299 | G92: 287 | H92: 586
C93: 12 | D93: 17.09.05.2022 | E93: KEROYA | F93: 455 | G93: 444 | H93: 899
C94: 13 | D94: 17.09.05.2023 | E94: KERTAPATI MUDIK | F94: 447 | G94: 392 | H94: 839
C95: 14 | D95: 17.09.05.2024 | E95: RENA JAYA | F95: 144 | G95: 129 | H95: 273
C96: TOTAL | F96: =SUM(F82:F95) -> 3,774 | G96: =SUM(G82:G95) -> 3,667 | H96: 7,441
C98: KECAMATAN | E98: : TABA PENANJUNG | F98: 17.09.06
C99: NO | D99: KODE WILAYAH | E99: DESA/KELURAHAN | F99: JUMLAH PENDUDUK
F100: LAKI-LAKI | G100: PEREMPUAN | H100: JUMLAH
C101: 1 | D101: 17.09.06.1007 | E101: TABA PENANJUNG | F101: 554 | G101: 558 | H101: =F101+G101 -> 1,112
C102: 2 | D102: 17.09.06.2002 | E102: TANJUNG RAMAN | F102: 304 | G102: 277 | H102: =F102+G102 -> 581
C103: 3 | D103: 17.09.06.2003 | E103: SUKARAMI | F103: 1,065 | G103: 1,027 | H103: 2,092
C104: 4 | D104: 17.09.06.2004 | E104: KARANG TENGAH | F104: 352 | G104: 271 | H104: 623
C105: 5 | D105: 17.09.06.2005 | E105: LUBUK SINI | F105: 672 | G105: 648 | H105: 1,320
C106: 6 | D106: 17.09.06.2008 | E106: TABA TERET | F106: 400 | G106: 412 | H106: 812
C107: 7 | D107: 17.09.06.2009 | E107: SURAU | F107: 350 | G107: 326 | H107: 676
C108: 8 | D108: 17.09.06.2010 | E108: RINDU HATI | F108: 620 | G108: 546 | H108: 1,166
C109: 9 | D109: 17.09.06.2011 | E109: TANJUNG HERAN | F109: 313 | G109: 287 | H109: 600
C110: 10 | D110: 17.09.06.2012 | E110: DATAR LEBAR | F110: 299 | G110: 252 | H110: 551
C111: 11 | D111: 17.09.06.2013 | E111: PENUM | F111: 279 | G111: 268 | H111: 547
C112: 12 | D112: 17.09.06.2023 | E112: BAJAK I | F112: 930 | G112: 868 | H112: 1,798
C113: 13 | D113: 17.09.06.2024 | E113: TABA BARU | F113: 313 | G113: 283 | H113: 596
C114: TOTAL | F114: =SUM(F101:F113) -> 6,451 | G114: =SUM(G101:G113) -> 6,023 | H114: =SUM(H101:H113) -> 12,474
C118: KECAMATAN | E118: : MERIGI KELINDANG | F118: 17.09.07
C119: NO | D119: KODE WILAYAH | E119: DESA/KELURAHAN | F119: JUMLAH PENDUDUK
F120: LAKI-LAKI | G120: PEREMPUAN | H120: JUMLAH
C121: 1 | D121: 17.09.07.2001 | E121: JAMBU | F121: 656 | G121: 586 | H121: =F121+G121 -> 1,242
C122: 2 | D122: 17.09.07.2002 | E122: PENEMBANG | F122: 384 | G122: 382 | H122: =F122+G122 -> 766
C123: 3 | D123: 17.09.07.2003 | E123: TALANG AMBUNG | F123: 81 | G123: 84 | H123: 165
C124: 4 | D124: 17.09.07.2004 | E124: TABA DURIAN SEBAKUL | F124: 244 | G124: 239 | H124: 483
C125: 5 | D125: 17.09.07.2005 | E125: LUBUK UNEN | F125: 452 | G125: 456 | H125: 908
C126: 6 | D126: 17.09.07.2006 | E126: PUNGGUK KETUPAK | F126: 237 | G126: 197 | H126: 434
C127: 7 | D127: 17.09.07.2007 | E127: PUNGGUK BERINGIN | F127: 226 | G127: 215 | H127: 441
C128: 8 | D128: 17.09.07.2008 | E128: ULAK LEBAR | F128: 230 | G128: 218 | H128: 448
C129: 9 | D129: 17.09.07.2009 | E129: KELINDANG | F129: 235 | G129: 245 | H129: 480
C130: 10 | D130: 17.09.07.2010 | E130: BAJAK II | F130: 369 | G130: 318 | H130: 687
C131: 11 | D131: 17.09.07.2011 | E131: LUBUK UNEN BARU | F131: 413 | G131: 390 | H131: 803
C132: 12 | D132: 17.09.07.2012 | E132: PADANG KEDEPER | F132: 151 | G132: 150 | H132: 301
C133: 13 | D133: 17.09.07.2013 | E133: KELINDANG ATAS | F133: 294 | G133: 269 | H133: 563
C134: TOTAL | F134: =SUM(F121:F133) -> 3,972 | G134: =SUM(G121:G133) -> 3,749 | H134: =SUM(H121:H133) -> 7,721
C136: KECAMATAN | E136: : MERIGI SAKTI | F136: 17.09.08
C137: NO | D137: KODE WILAYAH | E137: DESA/KELURAHAN | F137: JUMLAH PENDUDUK
F138: LAKI-LAKI | G138: PEREMPUAN | H138: JUMLAH
C139: 1 | D139: 17.09.08.2001 | E139: KOMERING | F139: 362 | G139: 352 | H139: =F139+G139 -> 714
C140: 2 | D140: 17.09.08.2002 | E140: BAJAK TIGA | F140: 193 | G140: 177 | H140: =F140+G140 -> 370
C141: 3 | D141: 17.09.08.2003 | E141: RAJAK BESI | F141: 317 | G141: 294 | H141: 611
C142: 4 | D142: 17.09.08.2004 | E142: PUNJUNG | F142: 297 | G142: 270 | H142: 567
C143: 5 | D143: 17.09.08.2005 | E143: SUSUP | F143: 293 | G143: 284 | H143: 577
C144: 6 | D144: 17.09.08.2006 | E144: ARGA INDAH II | F144: 462 | G144: 453 | H144: 915
C145: 7 | D145: 17.09.08.2007 | E145: CURUP | F145: 203 | G145: 214 | H145: 417
C146: 8 | D146: 17.09.08.2008 | E146: KARANG PANGGUNG | F146: 91 | G146: 87 | H146: 178
C147: 9 | D147: 17.09.08.2009 | E147: LUBUK PENDAM | F147: 203 | G147: 200 | H147: 403
C148: 10 | D148: 17.09.08.2010 | E148: LUBUK PUAR | F148: 133 | G148: 125 | H148: 258
C149: 11 | D149: 17.09.08.2011 | E149: DURIAN LEBAR | F149: 240 | G149: 243 | H149: 483
C150: 12 | D150: 17.09.08.2012 | E150: PAGAR AGUNG | F150: 150 | G150: 159 | H150: 309
C151: 13 | D151: 17.09.08.2013 | E151: PUNGGUK JAYA | F151: 121 | G151: 129 | H151: 250
C152: 14 | D152: 17.09.08.2014 | E152: TABA GEMANTUNG | F152: 201 | G152: 190 | H152: 391
C153: 15 | D153: 17.09.08.2015 | E153: PAGAR BESI | F153: 213 | G153: 210 | H153: 423
C154: TOTAL | F154: =SUM(F139:F153) -> 3,479 | G154: =SUM(G139:G153) -> 3,387 | H154: 6,866
C156: KECAMATAN | E156: : PONDOK KUBANG | F156: 17.09.09
C157: NO | D157: KODE WILAYAH | E157: DESA/KELURAHAN | F157: JUMLAH PENDUDUK
F158: LAKI-LAKI | G158: PEREMPUAN | H158: JUMLAH
C159: 1 | D159: 17.09.09.2001 | E159: PONDOK KUBANG | F159: 522 | G159: 522 | H159: =F159+G159 -> 1,044
C160: 2 | D160: 17.09.09.2002 | E160: BATU RAJA | F160: 407 | G160: 385 | H160: =F160+G160 -> 792
C161: 3 | D161: 17.09.09.2003 | E161: DUSUN ANYAR | F161: 109 | G161: 99 | H161: 208
C162: 4 | D162: 17.09.09.2004 | E162: TANJUNG DALAM | F162: 154 | G162: 132 | H162: 286
C163: 5 | D163: 17.09.09.2005 | E163: TALANG TENGAH I | F163: 292 | G163: 279 | H163: 571
C164: 6 | D164: 17.09.09.2006 | E164: PAKU HAJI | F164: 305 | G164: 278 | H164: 583
C165: 7 | D165: 17.09.09.2007 | E165: TANJUNG TERDANA | F165: 647 | G165: 666 | H165: 1,313
C166: 8 | D166: 17.09.09.2008 | E166: LINGGAR GALING | F166: 495 | G166: 455 | H166: 950
C167: 9 | D167: 17.09.09.2009 | E167: DUSUN BARU I | F167: 532 | G167: 481 | H167: 1,013
C168: 10 | D168: 17.09.09.2010 | E168: HARAPAN MAKMUR | F168: 613 | G168: 545 | H168: 1,158
C169: 11 | D169: 17.09.09.2011 | E169: MARGO MULYO | F169: 744 | G169: 703 | H169: 1,447
C170: 12 | D170: 17.09.09.2012 | E170: TABA JAMBU | F170: 859 | G170: 843 | H170: 1,702
C171: TOTAL | F171: =SUM(F159:F170) -> 5,679 | G171: =SUM(G159:G170) -> 5,388 | H171: 11,067
C175: KECAMATAN | E175: : BANG HAJI | F175: 17.09.10
C176: NO | D176: KODE WILAYAH | E176: DESA/KELURAHAN | F176: JUMLAH PENDUDUK
F177: LAKI-LAKI | G177: PEREMPUAN | H177: JUMLAH
C178: 1 | D178: 17.09.10.2001 | E178: SEKAYUN | F178: 383 | G178: 372 | H178: =F178+G178 -> 755
C179: 2 | D179: 17.09.10.2002 | E179: SEKAYUN MUDIK | F179: 480 | G179: 492 | H179: =F179+G179 -> 972
C180: 3 | D180: 17.09.10.2003 | E180: SEKAYUN HILIR | F180: 236 | G180: 205 | H180: 441
C181: 4 | D181: 17.09.10.2004 | E181: TALANG DONOK | F181: 405 | G181: 371 | H181: 776
C182: 5 | D182: 17.09.10.2005 | E182: TABA TENGAH | F182: 210 | G182: 188 | H182: 398
C183: 6 | D183: 17.09.10.2006 | E183: PADANG BERUNAI | F183: 357 | G183: 304 | H183: 661
C184: 7 | D184: 17.09.10.2007 | E184: LUBUK LANGKAP | F184: 318 | G184: 279 | H184: 597
C185: 8 | D185: 17.09.10.2008 | E185: AIR NAPAL | F185: 413 | G185: 396 | H185: 809
C186: 9 | D186: 17.09.10.2009 | E186: GENTING | F186: 200 | G186: 172 | H186: 372
C187: 10 | D187: 17.09.10.2010 | E187: TALANG PANJANG | F187: 226 | G187: 194 | H187: 420
C188: 11 | D188: 17.09.10.2011 | E188: BANG HAJI | F188: 355 | G188: 347 | H188: 702
C189: 12 | D189: 17.09.10.2012 | E189: SUNGKAI BERAYUN | F189: 166 | G189: 142 | H189: 308
C190: TOTAL | F190: =SUM(F178:F189) -> 3,749 | G190: =SUM(G178:G189) -> 3,462 | H190: 7,211
C193: KECAMATAN | E193: : SEMIDANG LAGAN | F193: 17.09.11
C194: NO | D194: KODE WILAYAH | E194: DESA/KELURAHAN | F194: JUMLAH PENDUDUK
F195: LAKI-LAKI | G195: PEREMPUAN | H195: JUMLAH
C196: 1 | D196: 17.09.11.2001 | E196: PAGAR GUNUNG | F196: 101 | G196: 97 | H196: =F196+G196 -> 198
C197: 2 | D197: 17.09.11.2002 | E197: KARANG NANDING | F197: 234 | G197: 226 | H197: =F197+G197 -> 460
C198: 3 | D198: 17.09.11.2003 | E198: SEMIDANG | F198: 175 | G198: 157 | H198: 332
C199: 4 | D199: 17.09.11.2004 | E199: GAJAH MATI | F199: 352 | G199: 303 | H199: 655
C200: 5 | D200: 17.09.11.2005 | E200: PADANG SIRING | F200: 89 | G200: 91 | H200: 180
C201: 6 | D201: 17.09.11.2006 | E201: LAGAN BUNGIN | F201: 349 | G201: 313 | H201: 662
C202: 7 | D202: 17.09.11.2007 | E202: PAGAR JATI | F202: 277 | G202: 236 | H202: 513
C203: 8 | D203: 17.09.11.2008 | E203: TABA LAGAN | F203: 535 | G203: 522 | H203: 1,057
C204: 9 | D204: 17.09.11.2009 | E204: LAGAN | F204: 209 | G204: 208 | H204: 417
C205: 10 | D205: 17.09.11.2010 | E205: BUKIT | F205: 418 | G205: 400 | H205: 818
C206: 11 | D206: 17.09.11.2011 | E206: KOTA NIUR | F206: 375 | G206: 344 | H206: 719
C207: TOTAL | F207: =SUM(F196:F206) -> 3,114 | G207: =SUM(G196:G206) -> 2,897 | H207: =SUM(H196:H206) -> 6,011
C208: Sumber : DKB SEMESTER II TAHUN 2024
G212: KEPALA DINAS KEPENDUDUKAN
G213: DAN PENCATATAN SIPIL
G217: AYATUL MUKHTADIN, S.H.
G218: NIP. 19680818 198812 1 002

Sheet PERBANDINGAN
C2: PERBANDINGAN DAN PERTAMBAHAN JUMLAH PENDUDUK KABUPATEN BENGKULU TENGAH
C5: NO | D5: KODE WILAYAH | E5: KECAMATAN | F5: JUMLAH PENDUDUK SEMESTER II TAHUN 2023 | I5: JUMLAH PENDUDUK SEMESTER II TAHUN 2024 | L5: PERTAMBAHAN PENDUDUK
F6: LAKI-LAKI | G6: PEREMPUAN | H6: JUMLAH | I6: LAKI-LAKI | J6: PEREMPUAN | K6: JUMLAH | L6: LAKI-LAKI | M6: PEREMPUAN | N6: JUMLAH | O6: PERSENTASE
C7: 1 | D7: 17.09.01 | E7: KARANG TINGGI | F7: 6,677 | G7: 6,516 | H7: 13,193 | I7: 6,804 | J7: 6,632 | K7: =I7+J7 -> 13,436 | L7: =I7-F7 -> 127 | M7: =J7-G7 -> 116 | N7: =L7+M7 -> 243 | O7: 1.84%
C8: 2 | D8: 17.09.02 | E8: TALANG EMPAT | F8: 6,610 | G8: 6,325 | H8: 12,935 | I8: 6,752 | J8: 6,436 | K8: =I8+J8 -> 13,188 | L8: =I8-F8 -> 142 | M8: =J8-G8 -> 111 | N8: =L8+M8 -> 253 | O8: 1.96%
C9: 3 | D9: 17.09.03 | E9: PONDOK KELAPA | F9: 16,343 | G9: 15,732 | H9: 32,075 | I9: 16,688 | J9: 16,086 | K9: 32,774 | L9: 345 | M9: 354 | N9: 699 | O9: 2.18%
C10: 4 | D10: 17.09.04 | E10: PEMATANG TIGA | F10: 4,055 | G10: 3,872 | H10: 7,927 | I10: 4,194 | J10: 3,956 | K10: 8,150 | L10: 139 | M10: 84 | N10: 223 | O10: 2.81%
C11: 5 | D11: 17.09.05 | E11: PAGAR JATI | F11: 3,751 | G11: 3,614 | H11: 7,365 | I11: 3,774 | J11: 3,667 | K11: 7,441 | L11: 23 | M11: 53 | N11: =L11+M11 -> 76 | O11: 1.03%
C12: 6 | D12: 17.09.06 | E12: TABA PENANJUNG | F12: 6,352 | G12: 5,955 | H12: 12,307 | I12: 6,451 | J12: 6,023 | K12: 12,474 | L12: 99 | M12: 68 | N12: 167 | O12: 1.36%
C13: 7 | D13: 17.09.07 | E13: MERIGI KELINDANG | F13: 3,889 | G13: 3,693 | H13: 7,582 | I13: 3,972 | J13: 3,749 | K13: 7,721 | L13: 83 | M13: 56 | N13: 139 | O13: 1.83%
C14: 8 | D14: 17.09.08 | E14: MERIGI SAKTI | F14: 3,438 | G14: 3,345 | H14: 6,783 | I14: 3,479 | J14: 3,387 | K14: 6,866 | L14: 41 | M14: 42 | N14: 83 | O14: 1.22%
C15: 9 | D15: 17.09.09 | E15: PONDOK KUBANG | F15: 5,526 | G15: 5,250 | H15: 10,776 | I15: 5,679 | J15: 5,388 | K15: 11,067 | L15: 153 | M15: 138 | N15: 291 | O15: 2.70%
C16: 10 | D16: 17.09.10 | E16: BANG HAJI | F16: 3,685 | G16: 3,407 | H16: 7,092 | I16: 3,749 | J16: 3,462 | K16: 7,211 | L16: 64 | M16: 55 | N16: 119 | O16: 1.68%
C17: 11 | D17: 17.09.11 | E17: SEMIDANG LAGAN | F17: 3,130 | G17: 2,921 | H17: 6,051 | I17: 3,114 | J17: 2,897 | K17: 6,011 | L17: =I17-F17 -> (16) | M17: (24) | N17: (40) | O17: -0.66%
C18: TOTAL | F18: =SUM(F7:F17) -> 63,456 | G18: 60,630 | H18: 124,086 | I18: 64,656 | J18: 61,683 | K18: 126,339 | L18: =SUM(L7:L17) -> 1,200 | M18: 1,053 | N18: =SUM(N7:N17) -> 2,253 | O18: 1.82%
